bitfinex-derivatives/quotes_ETHF0:USTF0_20260201
["timestamp","ask_amount","ask_price","bid_price","bid_amount"]
[1769986773613,0.21585,2319.1,2317.7,7.171]
[1769986773812,0.21585,2319.1,2317.6,11.10257]
[1769986774106,0.21585,2319.1,2317.7,7.171]
[1769986774512,0.21585,2319.1,2317.8,11.10257]
[1769986775108,0.21585,2319.1,2317.9,40.8]
[1769986775515,0.21585,2319.1,2318.0,11.10257]
[1769986776314,0.00455767,2319.5,2318.0,11.10257]
[1769986777510,3.883,2320.1,2318.0,11.10257]
[1769986777511,0.21576,2320.1,2318.0,15.63651]
[1769986777714,0.21576,2320.1,2318.1,11.10257]
[1769986777913,0.21576,2320.1,2318.1,11.31851]
[1769986778620,0.21959309,2320.1,2318.1,11.31851]
[1769986779412,0.21959309,2320.1,2318.4,3.64224977]
[1769986779606,3.884,2321.0,2318.5,13.84947]
[1769986780515,0.21572,2320.5,2319.5,40.8]
[1769986780716,0.21572,2320.5,2319.6,23.19457]
[1769986781616,3.88801544,2321.0,2319.6,11.10257]
[1769986781816,3.88801544,2321.0,2317.8,3.64229977]
[1769986782018,3.88801544,2321.0,2317.9,27.1553]
[1769986782611,0.21576,2320.0,2317.9,27.1553]
[1769986782809,0.21577,2319.9,2318.7,40.8]
[1769986783009,0.21577,2319.9,2318.8,12.081]
[1769986783508,0.21577,2319.9,2318.9,3.884]
[1769986785819,0.21577,2319.9,2319.0,10.6153]
[1769986786019,3.88801544,2321.0,2319.0,10.6153]
[1769986786221,3.88801544,2321.0,2319.0,23.2713]
[1769986786416,3.88801544,2321.0,2319.0,10.6153]
[1769986787715,0.21578,2319.8,2319.0,10.6153]
[1769986788421,0.21578,2319.8,2319.1,40.8]
[1769986788619,3.88801544,2321.0,2319.1,40.8]
[1769986788819,0.21578,2319.8,2319.2,10.6153]
[1769986789219,3.88801544,2321.0,2319.2,10.6153]
[1769986789420,0.21577,2320.0,2319.2,10.6153]
[1769986790121,3.88801544,2321.0,2319.2,10.6153]
[1769986790421,8.92213992,2321.0,2319.2,10.6153]
[1769986790820,0.21573,2320.4,2319.2,10.6153]
[1769986792725,0.21573,2320.3,2319.1,40.8]
[1769986792924,6.56701671,2321.0,2319.2,10.6153]
[1769986793223,11.60114119,2321.0,2319.3,12.656]
[1769986793625,11.60114119,2321.0,2319.4,10.6153]
[1769986793831,0.21577,2319.9,2319.2,10.6153]
[1769986795426,0.21577,2319.9,2319.3,12.655]
[1769986797430,8.92213992,2321.0,2319.4,10.6153]
[1769986797727,0.21574,2320.3,2319.4,10.6153]
[1769986799831,0.21575,2320.2,2319.4,10.6153]
[1769986800233,5.03412448,2320.8,2319.4,10.02849]
[1769986800427,5.03412448,2320.8,2318.7,6.35705374]
[1769986800428,2.67900127,2319.5,2318.1,2.87791525]
[1769986800626,0.21598,2317.7,2317.5,9.58623]
[1769986800829,0.21598,2317.7,2317.0,12.60410895]
[1769986801030,0.21598,2317.6,2316.8,3.883]
[1769986801230,0.21598,2317.6,2316.4,3.90941103]
[1769986801431,5.03412448,2318.3,2315.9,8.72110895]
[1769986801432,0.21603,2317.2,2316.3,3.883]
[1769986801728,0.21605,2316.9,2316.3,0.00440451]
[1769986801930,5.03412448,2318.0,2316.4,49.52110895]
[1769986802130,5.03412448,2318.4,2316.4,49.52110895]
[1769986802324,5.03412448,2318.5,2316.4,49.52110895]
[1769986802525,0.21596,2317.9,2316.5,12.632]
[1769986802831,0.21589,2318.6,2316.6,3.88634187]
[1769986803033,0.22000933,2318.6,2316.6,12.60745082]
[1769986803334,0.21584,2319.2,2317.1,7.7484857]
[1769986803527,0.21584,2319.2,2317.3,10.89106374]
[1769986803726,0.21577,2319.9,2317.7,7.7484857]
[1769986803932,0.21577,2319.9,2317.9,4.318]
[1769986804129,5.03412448,2320.7,2318.4,4.318]
[1769986804428,0.00371994,2320.7,2318.9,3.4304857]
[1769986804727,0.21563,2321.4,2319.0,21.86834187]
[1769986804922,5.03412448,2322.0,2319.5,7.7484857]
[1769986805128,0.21556,2322.2,2319.9,4.318]
[1769986805322,5.12046113,2322.8,2320.7,3.4304857]
[1769986805524,0.21549,2323.0,2320.8,13.09734187]
[1769986805725,0.21549,2323.0,2320.8,21.81845082]
[1769986805936,5.12046113,2323.4,2320.9,3.88634187]
[1769986806225,5.12046113,2323.4,2320.9,2.918]
[1769986806226,5.12046113,2323.1,2320.9,2.918]
[1769986806431,5.12046113,2322.9,2321.0,8.72110895]
[1769986806632,5.12046113,2322.9,2320.9,2.607]
[1769986807027,5.12046113,2322.9,2321.0,8.72110895]
[1769986807233,0.21558,2321.9,2321.0,8.72110895]
[1769986807635,0.22051909,2321.9,2321.0,8.7248909]
[1769986807930,0.00493909,2321.9,2321.0,0.00378195]
[1769986808137,0.21563,2321.4,2320.2,2.531]
[1769986808530,0.21563,2321.4,2320.3,8.72110895]
[1769986808929,0.21563,2321.4,2320.4,40.8]
[1769986809131,0.21563,2321.4,2320.4,40.80455717]
[1769986809436,0.00493909,2321.9,2320.5,8.72110895]
[1769986810326,0.21565,2321.2,2319.4,3.883]
[1769986810528,0.21567,2321.0,2319.0,3.883]
[1769986810728,0.21567,2321.0,2319.1,2.53]
[1769986810934,0.21567,2321.0,2319.5,40.8]
[1769986811334,0.21567,2321.0,2319.6,8.28632895]
[1769986811532,0.21567,2321.0,2319.5,40.80529088]
[1769986811533,0.21573,2320.3,2319.5,40.80529088]
[1769986811733,0.21575,2320.1,2318.7,3.883]
[1769986811928,0.21575,2320.1,2318.6,12.135]
[1769986811929,2.53,2320.6,2318.8,8.28632895]
[1769986812129,0.2158,2319.6,2318.1,3.883]
[1769986812329,0.2158,2319.6,2318.1,2.53]
[1769986812528,0.21581,2319.5,2318.2,8.28632895]
[1769986812730,0.00479581,2319.5,2318.3,40.8]
[1769986812934,0.21584,2319.2,2318.3,40.8]
[1769986813332,0.21584,2319.1,2318.3,40.8]
[1769986813539,0.21584,2319.1,2318.3,49.08632895]
[1769986814130,0.21584,2319.1,2318.3,40.8]
[1769986814337,0.21584,2319.1,2318.4,8.28632895]
[1769986814738,0.00479581,2319.5,2318.4,8.28632895]
[1769986814935,0.21584,2319.1,2318.4,8.28632895]
[1769986815136,0.00479581,2319.5,2318.4,8.28632895]
[1769986816138,0.00479581,2319.5,2318.3,40.8]
[1769986816335,0.21587,2318.8,2317.6,12.121]
[1769986816535,0.21588,2318.7,2317.7,8.28632895]
[1769986816732,0.21593,2318.2,2316.9,3.883]
[1769986816930,0.21593,2318.2,2315.9,27.186]
[1769986816931,2.531,2318.6,2316.1,8.28632895]
[1769986817230,0.216,2317.5,2316.2,40.8]
[1769986817436,0.216,2317.4,2316.2,40.80461163]
[1769986817738,0.00345538,2317.5,2316.3,8.28632895]
[1769986817739,0.21604,2317.0,2316.3,8.28632895]
[1769986818233,0.00345538,2317.5,2314.1,6.40499928]
[1769986818439,5.12046113,2316.7,2314.2,8.28632895]
[1769986818734,0.21619,2315.5,2314.3,40.8]
[1769986819034,5.12046113,2316.2,2314.3,40.8]
[1769986819035,2.91,2315.8,2314.3,40.8]
[1769986819333,0.21623,2315.0,2314.4,7.38276895]
[1769986820534,3.884,2315.6,2314.4,7.38276895]
[1769986820736,3.884,2315.6,2313.6,40.8]
[1769986820942,0.21629,2314.3,2313.3,0.22196456]
[1769986821142,0.21632,2314.1,2312.3,2.532]
[1769986821637,0.2202635,2314.1,2312.3,2.53559415]
[1769986821841,0.2202635,2314.1,2312.4,40.8]
[1769986822036,0.0039435,2314.1,2312.4,40.8]
[1769986822346,0.21624,2314.9,2312.4,40.8]
[1769986822547,0.21624,2314.9,2312.5,0.21645]
[1769986822849,3.886,2315.2,2312.7,0.21644]
[1769986823144,3.886,2315.2,2312.8,0.21643]
[1769986823344,3.89088131,2315.2,2312.8,0.21643]
[1769986823544,3.89088131,2315.2,2312.9,15.374]
[1769986824749,0.21622,2315.1,2312.9,15.59042]
[1769986825046,0.21614,2316.0,2313.6,0.21635]
[1769986825246,0.21614,2316.0,2313.7,12.63]
[1769986826146,0.00524537,2316.0,2313.8,3.888]
[1769986826448,0.21618,2315.5,2313.9,8.599]
[1769986826645,0.21618,2315.5,2314.0,8.599]
[1769986826851,0.21618,2315.5,2314.0,8.60432258]
[1769986827246,0.21618,2315.5,2314.1,40.8]
[1769986827543,0.21618,2315.5,2314.2,12.671]
[1769986828745,0.21618,2315.5,2314.3,16.561]
[1769986829048,0.00524537,2316.0,2314.3,16.561]
[1769986830756,0.00524537,2316.0,2314.1,41.01631]
[1769986830952,0.00524537,2316.0,2314.2,9.153]
[1769986831254,0.21615,2315.9,2314.3,10.084]
[1769986831955,0.00524537,2316.0,2314.3,10.084]
[1769986832748,0.21602,2317.2,2314.7,0.21625]
[1769986832952,0.21602,2317.2,2314.8,0.21624]
[1769986833149,2.534,2317.6,2315.3,40.8]
[1769986833654,2.53948887,2317.6,2315.3,40.8]
[1769986833952,0.21605,2316.9,2315.3,40.8]
[1769986837354,0.21606,2316.8,2315.3,40.8]
[1769986837759,0.21607,2316.7,2315.3,40.8]
[1769986838954,0.21608,2316.6,2315.3,40.8]
[1769986839456,2.53948887,2317.6,2315.3,40.8]
[1769986839856,0.21607,2316.7,2315.3,40.8]
[1769986840155,0.21612,2316.2,2315.3,40.8]
[1769986840549,2.53948887,2317.6,2315.3,40.8]
[1769986840754,0.21615,2315.8,2315.3,40.8]
[1769986840954,0.22064299,2315.8,2314.4,12.674]
[1769986841352,0.00449299,2315.8,2314.5,40.8]
[1769986841751,0.21618,2315.5,2314.5,40.8]
[1769986843057,3.889,2317.1,2314.5,40.8]
[1769986843257,3.889,2317.1,2314.8,0.21624]
[1769986843557,0.21605,2316.9,2315.0,2.72158646]
[1769986843753,0.21605,2316.9,2315.1,12.527]
[1769986843957,0.21605,2316.9,2315.2,3.889]
[1769986844153,0.00527213,2316.9,2315.0,2.72158646]
[1769986844353,0.21614,2315.9,2314.6,2.534]
[1769986844659,0.21616,2315.7,2314.3,2.50536646]
[1769986844861,2.534,2316.3,2314.0,0.00532258]
[1769986845062,0.21624,2314.9,2314.0,0.00532258]
[1769986845357,0.21627,2314.6,2314.1,40.8]
[1769986845861,0.00324812,2314.9,2314.1,40.8]
[1769986845862,0.21627,2314.5,2314.1,40.8]
[1769986846056,3.89224812,2314.9,2312.6,2.50536646]
[1769986846259,9.01270925,2314.9,2312.6,2.732]
[1769986846455,0.21634,2313.8,2312.7,40.8]
[1769986846959,0.21629,2314.3,2312.7,40.8]
[1769986847260,2.722,2314.6,2312.7,40.80303648]
[1769986847661,0.21631,2314.1,2312.7,40.80303648]
[1769986847862,0.21634,2313.8,2312.7,40.80303648]
[1769986848062,0.21634,2313.8,2312.7,53.47903648]
[1769986849165,0.21634,2313.8,2312.7,40.80303648]
[1769986849866,0.21635,2313.7,2312.7,40.80303648]
[1769986850065,2.722,2314.6,2312.7,40.80303648]
[1769986850266,2.722,2314.6,2311.4,3.891]
[1769986850267,5.12046113,2314.2,2311.4,3.891]
[1769986850464,0.21639,2313.3,2311.5,2.535]
[1769986850766,0.21639,2313.3,2311.6,40.8]
[1769986850960,3.891,2313.7,2311.6,40.8]
[1769986851163,0.21644,2312.7,2311.6,40.80328119]
[1769986851465,0.2210803,2312.7,2311.6,40.80328119]
[1769986851963,0.21645,2312.6,2311.7,0.00303648]
[1769986852267,0.21645,2312.6,2311.6,40.80328119]
[1769986852763,0.21645,2312.6,2311.6,40.80631767]
[1769986853468,0.21645,2312.6,2311.7,0.00303648]
[1769986853667,0.21645,2312.6,2312.2,0.00303648]
[1769986853869,0.21645,2312.6,2311.6,40.80328119]
[1769986854166,0.21639,2313.3,2312.3,0.00303648]
[1769986854361,0.2164,2313.2,2312.0,12.68503648]
[1769986854558,0.2164,2313.2,2312.0,12.682]
[1769986854767,0.2164,2313.2,2312.3,0.00303648]
[1769986854966,0.00423072,2313.2,2311.6,40.80328119]
[1769986855167,0.00423072,2313.2,2311.7,0.00303648]
[1769986855466,0.21642,2313.0,2311.8,12.457]
[1769986855767,0.21642,2313.0,2311.9,0.00303648]
[1769986855966,0.21643,2312.9,2312.0,0.00303648]
[1769986856166,0.21643,2312.9,2311.8,0.00303648]
[1769986856366,0.21643,2312.9,2311.7,12.685]
[1769986856567,0.21643,2312.9,2311.8,0.00303648]
[1769986856865,0.21643,2312.8,2312.0,0.00303648]
[1769986857067,0.21643,2312.8,2311.8,0.00303648]
[1769986857266,0.21643,2312.8,2311.7,12.685]
[1769986857568,0.21643,2312.8,2312.1,0.00303648]
[1769986857769,0.21643,2312.8,2312.3,0.00303648]
[1769986857970,0.21643,2312.8,2312.1,0.00303648]
[1769986858360,0.21643,2312.8,2311.7,12.685]
[1769986858567,0.21643,2312.8,2311.9,0.00303648]
[1769986858869,0.21643,2312.8,2312.0,0.00303648]
[1769986859070,0.21643,2312.8,2311.9,0.00303648]
[1769986859271,0.21643,2312.8,2311.7,12.685]
[1769986859471,0.21643,2312.8,2312.1,0.00303648]
[1769986860068,0.21643,2312.8,2312.3,0.00303648]
[1769986860269,0.21643,2312.8,2312.1,0.00303648]
[1769986860662,0.21643,2312.8,2312.3,0.00303648]
[1769986860866,0.21643,2312.8,2312.1,0.00303648]
[1769986861063,0.21643,2312.8,2311.7,12.685]
[1769986861270,0.21644,2312.7,2312.1,0.00303648]
[1769986861470,0.21644,2312.7,2311.9,0.00303648]
[1769986861665,0.00423072,2313.2,2312.2,0.00303648]
[1769986861966,0.00423072,2313.2,2311.7,12.685]
[1769986862171,0.00423072,2313.2,2312.0,0.00303648]
[1769986862467,0.2165,2312.1,2311.6,40.80328119]
[1769986862871,0.21651,2312.0,2311.7,0.00303648]
[1769986863072,0.21652,2311.9,2311.6,40.80328119]
[1769986863470,0.21652,2311.9,2311.7,0.00303648]
[1769986863670,2.54123072,2313.2,2310.3,0.21667]
[1769986863870,0.21653,2311.8,2310.7,3.894]
[1769986864674,0.21653,2311.8,2310.9,40.8]
[1769986866274,0.21653,2311.8,2310.7,3.89876734]
[1769986866576,0.21654,2311.7,2310.7,3.89876734]
[1769986866878,0.21654,2311.7,2310.8,40.8]
[1769986869180,0.21648,2312.4,2310.8,40.8]
[1769986870582,2.54123072,2313.2,2310.9,0.2166]
[1769986870880,0.21643,2312.9,2311.0,0.2166]
[1769986871080,0.21643,2312.9,2311.1,11.386]
[1769986871574,0.00423072,2313.2,2310.9,2.50536646]
[1769986871773,0.21655,2311.6,2310.7,0.00476734]
[1769986872076,0.2166,2311.1,2309.6,10.299]
[1769986872271,0.21662,2310.9,2309.9,40.8]
[1769986872672,40.41238524,2311.9,2309.9,40.8]
[1769986872871,0.21664,2310.6,2309.9,0.00414552]
[1769986873078,0.21665,2310.5,2309.9,0.00414552]
[1769986873475,3.261,2311.1,2309.1,3.895]
[1769986873679,0.2167,2309.9,2308.4,2.538]
[1769986873876,0.2167,2309.9,2308.5,40.8]
[1769986874082,3.895,2309.8,2308.3,0.22196456]
[1769986874283,0.21679,2309.0,2308.3,0.22196456]
[1769986874481,0.22136718,2309.0,2308.3,0.2260753]
[1769986874682,0.2168,2308.9,2307.5,40.8]
[1769986875176,0.00457718,2309.0,2307.5,40.8]
[1769986875377,3.895,2309.7,2307.5,40.8]
[1769986875378,0.21674,2309.5,2307.5,40.8]
[1769986875685,3.895,2309.7,2307.5,40.8]
[1769986876175,0.2168,2308.9,2307.5,40.8]
[1769986876374,0.2168,2308.9,2307.5,40.80467091]
[1769986876375,0.21682,2308.7,2307.5,40.80467091]
[1769986876581,0.00420268,2308.9,2307.5,40.80467091]
[1769986876784,3.45831392,2308.7,2305.9,5.01109089]
[1769986876980,0.21687,2308.1,2306.0,6.436]
[1769986877180,0.21687,2308.1,2306.0,4.40104463]
[1769986877380,0.21683,2308.6,2306.7,40.8]
[1769986877882,0.21683,2308.6,2306.7,45.13077807]
[1769986878083,0.21687,2308.2,2306.7,45.13077807]
[1769986878284,0.21688,2308.1,2306.7,40.80517806]
[1769986878488,0.21688,2308.0,2306.7,40.80517806]
[1769986878785,0.21689,2307.9,2306.7,40.80517806]
[1769986879382,0.21694,2307.4,2306.7,40.80517806]
[1769986880181,3.45831392,2308.2,2306.7,40.80517806]
[1769986880377,0.2169,2307.9,2306.7,40.80517806]
[1769986880683,0.2169,2307.8,2306.7,40.80517806]
[1769986881281,2.54,2308.4,2306.7,40.80517806]
[1769986882079,0.21692,2307.7,2306.7,40.80517806]
[1769986882282,0.21692,2307.6,2306.7,0.00517806]
[1769986882785,0.21692,2307.6,2306.8,40.8]
[1769986883080,0.21693,2307.5,2306.7,0.00517806]
[1769986883285,2.54,2308.4,2306.7,0.00517806]
[1769986883485,0.21694,2307.4,2306.7,40.80517806]
[1769986883689,2.542,2307.5,2306.7,8.06e-06]
[1769986883876,0.21699,2306.9,2306.7,8.06e-06]
[1769986884076,0.21699,2306.9,2305.6,40.8]
[1769986884286,0.21699,2306.9,2306.4,4.32560001]
[1769986884488,2.542,2307.6,2305.6,40.8]
[1769986884489,4.84276789,2307.6,2306.7,4.32560001]
[1769986884684,0.21699,2306.9,2306.3,2.28043781]
[1769986884980,4.84276789,2307.6,2306.8,4.32560001]
[1769986885185,4.84276789,2307.6,2306.5,2.28043781]
[1769986885585,2.30076789,2307.5,2306.5,2.28043781]
[1769986885786,0.21698,2307.0,2306.3,2.28419523]
[1769986885988,0.21699,2306.9,2306.0,2.28043781]
[1769986886290,0.21699,2306.9,2303.9,5.01109089]
[1769986886291,0.21705,2306.3,2305.5,2.28043781]
[1769986886688,0.21705,2306.3,2305.8,4.32560001]
[1769986886884,0.21705,2306.3,2305.6,40.8]
[1769986887086,0.21705,2306.3,2305.6,40.80354903]
[1769986887281,0.21705,2306.3,2305.7,2.28043781]
[1769986887482,0.21705,2306.3,2305.9,4.32560001]
[1769986887687,2.30076789,2306.9,2305.9,2.28043781]
[1769986887990,0.21704,2306.3,2305.7,2.28043781]
[1769986888190,2.30636663,2307.0,2305.9,3.66474001]
[1769986888390,2.30076789,2306.5,2305.6,40.80354903]
[1769986888591,0.21707,2306.0,2305.6,40.80354903]
[1769986889084,0.21707,2306.0,2305.6,2.28398684]
[1769986889389,2.543,2306.6,2305.9,3.66474001]
[1769986889582,2.30076789,2306.9,2305.8,2.28043781]
[1769986889784,37.87438524,2308.7,2305.8,2.28043781]
[1769986889785,2.30076789,2308.0,2306.5,2.28043781]
[1769986889983,2.30076789,2308.0,2306.7,2.28043781]
[1769986890388,2.30076789,2308.0,2306.8,5.27549782]
[1769986890684,2.30398948,2308.0,2306.8,2.28043781]
[1769986891192,0.21694,2307.4,2306.8,2.28043781]
[1769986891589,0.21694,2307.4,2307.0,2.99506001]
[1769986891789,0.00322159,2308.0,2306.8,40.8]
[1769986892086,0.21699,2306.9,2306.4,2.28043781]
[1769986892292,3.45831392,2307.8,2306.4,2.28043781]
[1769986892688,0.217,2306.8,2306.4,2.28043781]
[1769986892888,0.21701,2306.7,2306.4,0.89043781]
[1769986893389,0.21707,2306.0,2305.6,0.00354903]
[1769986893598,0.22205579,2306.0,2305.6,0.00354903]
[1769986893791,2.30076789,2306.7,2305.7,40.8]
[1769986893991,0.21704,2306.3,2305.7,40.8]
[1769986894192,2.30076789,2306.7,2305.7,40.8]
[1769986894391,0.21708,2306.0,2303.7,3.67559392]
[1769986894591,0.21708,2305.9,2303.8,16.141]
[1769986894792,0.21708,2305.9,2304.6,2.28043781]
[1769986894988,0.21708,2305.9,2304.8,2.28043781]
[1769986895393,0.22082987,2305.9,2304.8,2.28494811]
[1769986895592,2.30076789,2306.7,2304.9,2.28043781]
[1769986895798,0.21704,2306.4,2304.9,2.28043781]
[1769986896102,0.21701,2306.7,2304.9,2.28043781]
[1769986896699,0.22027538,2306.7,2304.9,2.28043781]
[1769986896897,0.21702,2306.6,2304.9,2.28043781]
[1769986897099,0.00326538,2306.7,2304.9,2.28043781]
[1769986897600,0.21706,2306.1,2304.9,2.28043781]
[1769986897801,0.21707,2306.0,2304.9,2.28043781]
[1769986898095,0.21708,2305.9,2304.9,2.28043781]
[1769986898301,0.2171,2305.8,2304.9,2.28043781]
[1769986899200,2.43593569,2307.8,2305.6,2.3802413]
[1769986899501,2.43593569,2307.8,2305.8,2.3802413]
[1769986900298,2.44153588,2307.8,2305.8,2.3802413]
[1769986901195,0.21696,2307.2,2305.8,2.3802413]
[1769986902599,0.21697,2307.1,2306.0,2.3802413]
[1769986902795,2.43593569,2307.4,2306.1,2.3802413]
[1769986903101,0.21699,2306.9,2306.1,2.3802413]
[1769986903301,0.217,2306.8,2306.1,2.3802413]
[1769986903598,0.217,2306.8,2306.2,40.8]
[1769986904605,0.21704,2306.3,2305.6,2.3802413]
[1769986905604,0.21704,2306.3,2305.7,40.8]
[1769986905907,0.21704,2306.3,2305.7,43.11401788]
[1769986906306,0.21705,2306.2,2305.7,43.11401788]
[1769986906506,0.21705,2306.2,2305.7,40.8]
[1769986906903,2.40126155,2305.9,2304.9,3.84234592]
[1769986907107,2.40615352,2305.9,2304.9,2.31401788]
[1769986907406,2.40615352,2305.9,2305.0,40.8]
[1769986907908,0.21714,2305.3,2305.0,40.8]
[1769986908305,0.21714,2305.3,2304.8,0.0045103]
[1769986908506,0.21714,2305.3,2304.8,2.31852818]
[1769986908703,0.21714,2305.3,2304.8,0.0045103]
[1769986908905,0.21716,2305.1,2304.4,2.31401788]
[1769986909209,2.40126155,2305.3,2303.8,2.31401788]
[1769986909507,2.40126155,2304.9,2303.5,2.31401788]
[1769986910002,0.21722,2304.4,2303.5,2.31822575]
[1769986910203,0.21724,2304.2,2303.5,2.31822575]
[1769986910509,0.22157755,2304.2,2303.5,2.31822575]
[1769986910705,2.40126155,2305.2,2303.5,2.31822575]
[1769986910907,3.905,2305.4,2303.5,2.31822575]
[1769986911102,6.30626155,2305.4,2303.7,2.31401788]
[1769986911309,0.21722,2304.5,2303.7,2.31401788]
[1769986911506,0.21722,2304.4,2303.7,2.31401788]
[1769986911707,0.21722,2304.4,2303.8,40.8]
[1769986911708,0.21724,2304.2,2303.8,40.8]
[1769986912906,0.21719,2304.8,2303.9,2.31401788]
[1769986913103,37.87438524,2305.9,2303.9,2.31401788]
[1769986913307,2.40126155,2306.0,2303.9,2.31401788]
[1769986913811,2.40126155,2305.5,2303.9,2.31401788]
[1769986914011,2.4057843,2305.5,2303.9,2.31401788]
[1769986914806,0.21719,2304.7,2303.9,2.31401788]
[1769986917208,2.4057843,2305.5,2303.9,2.31401788]
[1769986917613,0.21716,2305.1,2303.9,2.31401788]
[1769986918310,0.00452275,2305.5,2303.9,2.31401788]
[1769986918813,0.21716,2305.1,2304.1,2.31401788]
[1769986919007,0.00452275,2305.5,2304.3,2.31401788]
[1769986919207,40.27564679,2306.3,2304.5,2.31401788]
[1769986919412,2.40126155,2306.3,2304.5,2.31401788]
[1769986919916,2.40126155,2306.0,2304.5,2.31401788]
[1769986920117,0.21714,2305.3,2304.5,2.31401788]
[1769986920313,5.85957547,2305.5,2304.5,2.31401788]
[1769986920518,2.40126155,2305.2,2304.0,40.8]
[1769986920819,2.40126155,2304.3,2303.4,0.22196456]
[1769986921016,2.40126155,2304.3,2302.4,5.01109089]
[1769986921017,2.40126155,2304.3,2302.4,12.732]
[1769986921217,2.40126155,2304.3,2302.7,40.8]
[1769986921416,41.78138524,2305.1,2302.7,40.8]
[1769986921417,2.61853155,2303.9,2302.7,40.8]
[1769986921618,0.21719,2304.7,2302.8,12.732]
[1769986921816,0.21721,2304.6,2302.9,0.21735]
[1769986922011,0.00317554,2304.6,2302.9,0.00347983]
[1769986922218,0.21723,2304.3,2302.9,0.00347983]
[1769986922516,0.21724,2304.2,2303.0,2.31401788]
[1769986922716,0.00317554,2304.6,2303.0,2.31401788]
[1769986922918,37.87438524,2305.3,2303.6,2.31401788]
[1769986922919,0.21714,2305.3,2303.6,2.31401788]
[1769986923119,0.21714,2305.3,2303.8,2.31401788]
[1769986923321,0.21714,2305.3,2303.9,2.31401788]
[1769986923923,0.22070113,2305.3,2303.9,2.31401788]
[1769986925024,0.21721,2304.5,2303.6,2.31401788]
[1769986925328,0.21723,2304.3,2303.6,2.31401788]
[1769986925823,2.40126155,2305.2,2303.6,2.31401788]
[1769986926023,0.21719,2304.8,2303.6,2.31401788]
[1769986926228,0.00356113,2305.3,2303.6,2.31401788]
[1769986926824,0.00356113,2305.3,2303.3,8.19134592]
[1769986926825,0.00356113,2305.3,2303.8,2.31401788]
[1769986927025,2.40482268,2305.3,2303.8,2.31401788]
[1769986927224,0.21719,2304.8,2303.8,2.31401788]
[1769986927528,0.21721,2304.6,2303.8,2.31401788]
[1769986928830,2.40126155,2305.1,2303.8,2.31401788]
[1769986930329,0.21721,2304.6,2303.8,2.31401788]
[1769986930725,2.28575963,2304.6,2303.7,40.8]
[1769986930927,2.28575963,2304.6,2302.9,0.00347983]
[1769986930928,5.12046113,2303.9,2301.7,3.84234592]
[1769986931228,5.12046113,2303.9,2300.3,7.58326418]
[1769986931229,2.28575963,2302.5,2300.3,3.84234592]
[1769986931431,0.21756,2300.8,2299.3,3.84234592]
[1769986931625,0.21766,2299.8,2297.9,3.84234592]
[1769986931830,3.908,2300.8,2298.5,40.8]
[1769986931831,2.28575963,2300.3,2298.5,40.8]
[1769986932030,27.36,2301.5,2299.4,2.57623856]
[1769986932031,2.28575963,2301.5,2299.4,2.57623856]
[1769986932232,2.50326963,2301.4,2299.3,2.57623856]
[1769986932427,2.28575963,2301.8,2299.5,3.908]
[1769986932628,2.28575963,2302.2,2300.0,2.57623856]
[1769986932829,2.28575963,2302.0,2300.0,2.01074875]
[1769986933033,2.28575963,2300.8,2299.3,2.27106119]
[1769986933236,2.28575963,2301.6,2299.5,2.27106119]
[1769986933433,0.21746,2301.9,2299.5,2.27106119]
[1769986933628,0.21746,2301.9,2299.8,2.27106119]
[1769986933936,0.21746,2301.9,2299.9,2.27106119]
[1769986934636,2.28575963,2301.8,2299.9,2.27106119]
[1769986934836,2.50324963,2301.6,2299.9,2.27106119]
[1769986935835,0.00490018,2302.0,2299.9,2.27106119]
[1769986935836,0.00490018,2302.0,2299.9,5.72937511]
[1769986936031,2.28575963,2301.9,2300.0,2.27106119]
[1769986936236,2.28575963,2301.8,2299.7,2.27106119]
[1769986936637,2.28575963,2301.2,2299.7,2.27106119]
[1769986936830,2.50329963,2301.0,2299.7,2.27106119]
[1769986937033,2.50329963,2301.0,2298.9,2.27106119]
[1769986937433,2.50329963,2301.0,2299.1,2.27106119]
[1769986938137,2.50334963,2300.5,2299.1,2.27106119]
[1769986938933,2.50335963,2300.4,2299.1,2.27106119]
[1769986939139,2.28575963,2299.9,2298.7,2.27106119]
[1769986939335,2.28997355,2299.9,2298.7,2.27106119]
[1769986940232,2.28997355,2299.9,2298.9,2.27106119]
[1769986940233,0.00421392,2299.9,2298.9,2.27106119]
[1769986940436,0.21756,2300.8,2298.9,2.27106119]
[1769986940734,1.33100963,2300.2,2298.9,2.27106119]
[1769986940935,0.21763,2300.2,2298.9,2.27106119]
[1769986941135,3.912,2300.8,2298.9,2.27106119]
[1769986941330,0.21763,2300.1,2298.9,2.27106119]
[1769986941534,4.12956,2300.8,2298.9,2.27106119]
[1769986941736,3.912,2300.8,2298.9,2.27106119]
[1769986941937,0.21758,2300.6,2298.9,2.27106119]
[1769986942138,0.21759,2300.5,2298.9,2.27106119]
[1769986942437,0.2176,2300.4,2298.9,2.27106119]
[1769986943238,0.2176,2300.4,2298.2,3.913]
[1769986943239,2.28575963,2299.3,2297.8,2.27106119]
[1769986943740,2.28575963,2298.1,2296.9,0.0757382]
[1769986944034,2.50357963,2298.1,2296.8,2.27106119]
[1769986944240,2.50706736,2298.1,2296.9,40.8]
[1769986944434,2.28575963,2297.8,2297.0,0.22197658]
[1769986944630,2.28575963,2297.6,2296.9,40.8]
[1769986945234,0.21786,2297.7,2297.0,0.22197658]
[1769986945435,2.28575963,2298.0,2296.9,41.02197658]
[1769986945742,2.28575963,2298.0,2296.9,40.8]
[1769986946243,2.28575963,2297.6,2296.8,0.00411036]
[1769986946541,2.28575963,2297.6,2296.3,2.27106119]
[1769986946741,0.21785,2297.8,2296.7,2.27106119]
[1769986947243,0.21785,2297.8,2297.0,0.22197658]
[1769986947448,0.21785,2297.8,2297.0,0.22600007]
[1769986947637,0.21785,2297.8,2297.1,0.22197658]
[1769986947943,0.21785,2297.8,2297.3,0.22197658]
[1769986948346,0.21785,2297.8,2297.0,0.00402349]
[1769986948644,2.50363963,2297.5,2296.4,43.07106119]